bitfinex/quotes_SOLUSD_20250306
["timestamp","ask_amount","ask_price","bid_price","bid_amount"]
[1741273745217,87.5362,148.45,148.41,0.14216157]
[1741273745446,87.5362,148.45,148.41,52.67566158]
[1741273745616,80.8,148.44,148.33,108.3]
[1741273745814,104.38,148.43,148.38,312.0]
[1741273746053,91.14,148.42,148.32,52.53350001]
[1741273746349,80.8,148.41,148.32,52.53350001]
[1741273746536,10.34,148.42,148.33,52.53350001]
[1741273746719,80.8,148.41,148.32,52.53350001]
[1741273746916,80.8,148.41,148.31,52.53350001]
[1741273747222,80.8,148.41,148.31,1.55771927]
[1741273747451,80.8,148.41,148.35,0.14216157]
[1741273747623,23.5863,148.39,148.33,0.14216157]
[1741273748046,80.8,148.38,148.3,1.781]
[1741273748237,80.8,148.37,148.3,1.781]
[1741273748464,80.8,148.36,148.3,1.781]
[1741273748759,1.7376,148.35,148.3,1.781]
[1741273749057,91.1,148.34,148.3,313.781]
[1741273749433,80.8,148.33,148.3,0.0001]
[1741273749648,80.8,148.32,148.3,0.0001]
[1741273749951,6.7426,148.31,148.3,0.0001]
[1741273750448,80.8,148.3,148.24,0.033]
[1741273750629,80.8,148.29,148.24,0.033]
[1741273750950,6.7426,148.31,148.24,0.033]
[1741273751262,1.7376,148.35,148.3,52.67566158]
[1741273751549,8.4785,148.35,148.25,1.4156104]
[1741273751740,8.4785,148.35,148.26,0.14216157]
[1741273751937,6.7404,148.36,148.31,52.67566158]
[1741273752136,23.5913,148.36,148.31,0.14216157]
[1741273752437,80.8,148.35,148.31,312.0]
[1741273752635,6.7404,148.36,148.32,0.14216157]
[1741273752837,160.52,148.41,148.35,52.67566158]
[1741273753044,6.7362,148.45,148.4,0.14216157]
[1741273753241,6.7362,148.45,148.4,52.67566158]
[1741273753554,6.7362,148.45,148.4,0.14216157]
[1741273753757,6.7353,148.47,148.4,0.14216157]
[1741273753956,6.7353,148.47,148.4,52.67566158]
[1741273754252,6.7353,148.47,148.39,52.67566158]
[1741273754454,0.03,148.48,148.45,52.67566158]
[1741273754657,0.03,148.48,148.47,52.67566158]
[1741273755055,0.03,148.48,148.47,232.44313359]
[1741273755241,0.03,148.48,148.47,179.62531044]
[1741273755446,0.03,148.48,148.47,0.14216157]
[1741273755642,6.7649,148.48,148.42,0.14216157]
[1741273755856,0.03,148.48,148.4,1.4144799]
[1741273756049,0.03,148.48,148.47,312.0]
[1741273756558,0.03,148.48,148.32,189.6]
[1741273756862,170.7,148.47,148.38,52.53350001]
[1741273757160,160.48,148.47,148.43,52.53350001]
[1741273757364,0.03,148.48,148.47,0.14216157]
[1741273757561,0.03,148.48,148.47,52.67566158]
[1741273757861,0.03,148.48,148.44,0.14216157]
[1741273758046,0.03,148.48,148.44,52.67566158]
[1741273758555,0.03,148.48,148.38,6.0349]
[1741273758857,0.03,148.48,148.38,52.53350001]
[1741273759031,0.03,148.48,148.39,0.14216157]
[1741273759236,0.03,148.48,148.42,0.14216157]
[1741273759538,0.03,148.48,148.35,1.41470175]
[1741273759738,6.7649,148.48,148.37,52.53350001]
[1741273759956,6.7649,148.48,148.38,52.67566158]
[1741273760260,80.83,148.48,148.36,18.64964886]
[1741273760440,80.83,148.48,148.4,0.14216157]
[1741273760637,0.03,148.48,148.43,0.14216157]
[1741273760836,0.03,148.48,148.47,312.0]
[1741273761045,0.03,148.48,148.47,364.67566158]
[1741273761261,0.03,148.48,148.47,312.0]
[1741273761459,0.03,148.48,148.47,312.14216157]
[1741273761644,1.7051941,148.53,148.5,20.0]
[1741273761846,1.7051941,148.53,148.52,52.67566158]
[1741273762243,1.7051941,148.53,148.52,0.14216157]
[1741273763549,1.7051941,148.53,148.52,52.67566158]
[1741273763752,1.7051941,148.53,148.52,59.40866158]
[1741273764269,1.7051941,148.53,148.52,0.14216157]
[1741273764469,1.7051941,148.53,148.52,52.67566158]
[1741273765061,1.7051941,148.53,148.52,391.47174539]
[1741273765256,9.41e-05,148.53,148.52,390.34263358]
[1741273765471,9.41e-05,148.53,148.52,390.05831044]
[1741273765775,9.41e-05,148.53,148.52,312.14216157]
[1741273765993,9.41e-05,148.53,148.44,6.7367]
[1741273766157,9.41e-05,148.53,148.42,52.53350001]
[1741273766352,9.41e-05,148.53,148.41,0.033]
[1741273766353,1.6318,148.52,148.41,0.033]
[1741273766553,11.8118,148.52,148.41,0.033]
[1741273766785,11.8118,148.52,148.41,52.56650001]
[1741273766953,11.8118,148.52,148.42,52.53350001]
[1741273767159,1.6318,148.52,148.47,2.0]
[1741273767361,9.41e-05,148.53,148.51,0.14216157]
[1741273767563,9.41e-05,148.53,148.52,0.14216157]
[1741273767868,9.41e-05,148.53,148.49,0.14216157]
[1741273768271,9.41e-05,148.53,148.46,52.53350001]
[1741273768475,9.41e-05,148.53,148.44,52.53350001]
[1741273768785,9.41e-05,148.53,148.45,0.14216157]
[1741273768981,9.41e-05,148.53,148.46,312.0]
[1741273769182,9.41e-05,148.53,148.47,52.67566158]
[1741273769488,9.41e-05,148.53,148.47,0.14216157]
[1741273770055,9.41e-05,148.53,148.44,0.14216157]
[1741273770488,9.41e-05,148.53,148.49,0.14216157]
[1741273770693,9.41e-05,148.53,148.46,0.14216157]
[1741273770890,80.8000941,148.53,148.43,10.18]
[1741273771195,80.8000941,148.53,148.43,62.71350001]
[1741273771368,170.58,148.52,148.41,0.033]
[1741273771568,170.58,148.52,148.42,52.53350001]
[1741273771770,170.58,148.52,148.42,0.14216157]
[1741273772092,110.7647,148.51,148.41,0.033]
[1741273772294,80.8,148.5,148.41,0.033]
[1741273772491,80.8,148.49,148.41,0.033]
[1741273772991,80.8,148.49,148.41,312.033]
[1741273773174,80.8,148.48,148.41,312.033]
[1741273773668,1.7251,148.47,148.41,312.033]
[1741273773874,23.5768,148.45,148.41,312.033]
[1741273774071,23.5768,148.45,148.41,0.033]
[1741273774371,80.8,148.44,148.41,0.033]
[1741273774695,80.8,148.43,148.41,0.033]
[1741273775289,80.8,148.43,148.34,52.53350001]
[1741273775498,80.8,148.43,148.35,52.53350001]
[1741273775668,80.8,148.43,148.33,52.53350001]
[1741273775858,23.5832,148.41,148.27,6.95754235]
[1741273776059,80.8,148.4,148.32,52.53350001]
[1741273776294,80.8,148.4,148.28,1.41564002]
[1741273776295,80.8,148.4,148.28,109.71564002]
[1741273776495,80.8,148.4,148.32,0.14216157]
[1741273776697,183.9832,148.41,148.32,52.67566158]
[1741273776925,183.9832,148.41,148.34,52.53350001]
[1741273777075,183.9832,148.41,148.36,312.0]
[1741273777885,217.6736,148.41,148.36,312.0]
[1741273778085,183.9832,148.41,148.36,312.0]
[1741273779590,183.9832,148.41,148.37,0.14216157]
[1741273779789,167.138,148.41,148.37,0.14216157]
[1741273780000,167.138,148.41,148.36,52.53350001]
[1741273780205,183.9832,148.41,148.35,52.67566158]
[1741273780500,183.9832,148.41,148.35,0.14216157]
[1741273780683,183.9832,148.41,148.34,0.14216157]
[1741273780888,217.6736,148.41,148.34,0.14216157]
[1741273781089,80.8,148.4,148.31,52.53350001]
[1741273781309,80.8,148.39,148.3,52.53350001]
[1741273781516,80.8,148.38,148.3,52.53350001]
[1741273781823,80.8,148.38,148.29,52.53350001]
[1741273781824,90.86,148.38,148.29,52.53350001]
[1741273782118,23.5912,148.36,148.29,52.53350001]
[1741273782326,80.8,148.35,148.29,52.53350001]
[1741273782503,80.8,148.35,148.3,0.14216157]
[1741273782690,80.8,148.35,148.32,312.0]
[1741273783085,80.8,148.34,148.25,52.53350001]
[1741273783323,80.8,148.33,148.24,0.033]
[1741273783696,80.8,148.33,148.25,52.53350001]
[1741273784022,16.8553,148.33,148.28,0.14216157]
[1741273784224,87.5408,148.35,148.28,52.67566158]
[1741273784434,104.3928,148.35,148.31,0.14216157]
[1741273784721,104.3928,148.35,148.28,0.14216157]
[1741273784889,80.8,148.34,148.28,0.14216157]
[1741273785221,80.8,148.34,148.29,52.53350001]
[1741273786040,6.7403,148.36,148.32,0.14216157]
[1741273786197,6.7403,148.36,148.32,52.67566158]
[1741273786397,6.7394,148.38,148.32,0.14216157]
[1741273786630,80.8,148.4,148.32,0.14216157]
[1741273786631,6.7391,148.39,148.36,52.67566158]
[1741273786922,6.7391,148.39,148.35,0.14216157]
[1741273787232,170.38,148.41,148.37,0.14216157]
[1741273787529,193.9634,148.41,148.37,0.14216157]
[1741273787830,177.1182,148.41,148.37,0.14216157]
[1741273788298,177.1182,148.41,148.38,0.14216157]
[1741273788497,177.1182,148.41,148.39,0.14216157]
[1741273788731,160.4,148.41,148.39,52.67566158]
[1741273789231,167.1381,148.41,148.32,0.14216157]
[1741273789395,167.1381,148.41,148.36,0.14216157]
[1741273789594,167.1381,148.41,148.4,312.0]
[1741273790027,183.9833,148.41,148.35,52.67566158]
[1741273790223,167.1381,148.41,148.39,0.14216157]
[1741273790722,183.9833,148.41,148.35,52.53350001]
[1741273790901,183.9833,148.41,148.33,0.14216157]
[1741273791102,80.8,148.4,148.33,52.53350001]
[1741273791427,80.8,148.4,148.35,0.14216157]
[1741273791629,80.8,148.4,148.36,52.67566158]
[1741273791828,80.8,148.4,148.38,0.14216157]
[1741273792037,167.1381,148.41,148.38,0.14216157]
[1741273792531,183.9833,148.41,148.38,0.14216157]
[1741273792733,183.9833,148.41,148.37,52.67566158]
[1741273792734,167.1381,148.41,148.37,52.67566158]
[1741273792919,167.1381,148.41,148.39,312.0]
[1741273793096,183.9833,148.41,148.39,312.0]
[1741273793305,183.9833,148.41,148.35,0.14216157]
[1741273793502,264.7833,148.41,148.35,0.14216157]
[1741273793698,264.7833,148.41,148.35,52.67566158]
[1741273794329,167.1381,148.41,148.38,52.53350001]
[1741273794539,183.9833,148.41,148.38,52.53350001]
[1741273794704,167.1381,148.41,148.38,52.53350001]
[1741273794906,167.1381,148.41,148.34,0.14216157]
[1741273795137,183.9833,148.41,148.37,52.53350001]
[1741273795307,183.9833,148.41,148.34,0.14216157]
[1741273795503,183.9833,148.41,148.35,52.53350001]
[1741273795705,183.9833,148.41,148.37,0.14216157]
[1741273795907,167.1681,148.41,148.37,0.14216157]
[1741273796120,167.1681,148.41,148.39,0.14216157]
[1741273796121,6.7681,148.41,148.39,0.14216157]
[1741273796322,0.03,148.41,148.36,0.14216157]
[1741273796717,0.03,148.41,148.36,52.67566158]
[1741273797010,0.03,148.41,148.34,0.14216157]
[1741273797215,0.03,148.41,148.3,1.41525702]
[1741273797503,0.03,148.41,148.34,52.67566158]
[1741273797704,0.03,148.41,148.36,52.53350001]
[1741273797930,0.03,148.41,148.37,0.14216157]
[1741273798509,0.03,148.41,148.36,312.0]
[1741273798712,0.03,148.41,148.32,52.53350001]
[1741273799043,1.7087,148.4,148.29,52.53350001]
[1741273799343,9.76,148.39,148.28,52.56650001]
[1741273800348,171.7824,148.38,148.28,0.033]
[1741273800708,2.0,148.35,148.24,0.033]
[1741273800913,1.5831,148.33,148.24,0.033]
[1741273801225,90.5,148.32,148.25,52.53350001]
[1741273801529,1.5831,148.33,148.3,364.53350001]
[1741273801731,160.5,148.34,148.31,52.67566158]
[1741273801912,160.5,148.34,148.3,312.0]
[1741273802112,160.5,148.34,148.24,0.033]
[1741273802314,160.5,148.34,148.29,52.67566158]
[1741273802535,6.7394,148.38,148.31,52.67566158]
[1741273802738,80.8,148.37,148.28,9.76]
[1741273802939,90.6,148.36,148.24,0.033]
[1741273803119,251.12,148.35,148.25,52.53350001]
[1741273803322,251.12,148.35,148.24,0.033]
[1741273803530,80.8,148.34,148.24,0.033]
[1741273803755,80.8,148.33,148.24,52.56650001]
[1741273803946,80.8,148.32,148.26,52.53350001]
[1741273804121,80.8,148.32,148.29,0.14216157]
[1741273804320,6.7412,148.34,148.25,0.14216157]
[1741273804526,80.8,148.33,148.27,0.14216157]
[1741273805054,80.8,148.33,148.25,0.14216157]
[1741273805348,80.8,148.32,148.24,0.033]
[1741273805644,6.176,148.3,148.24,0.033]
[1741273805846,1.6283,148.28,148.24,0.033]
[1741273806450,6.744,148.28,148.24,0.033]
[1741273806816,80.8,148.27,148.24,0.033]
[1741273807030,80.8,148.27,148.21,0.033]
[1741273807220,80.8,148.26,148.21,0.033]
[1741273807439,82.5165,148.25,148.18,0.033]
[1741273807628,2.0,148.22,148.18,0.033]
[1741273807842,251.18,148.21,148.15,0.033]
[1741273808040,80.8,148.2,148.15,0.033]
[1741273808268,170.38,148.21,148.17,49.80648739]
[1741273808458,170.38,148.21,148.15,0.033]
[1741273808661,80.8,148.2,148.15,0.033]
[1741273809066,80.8,148.2,148.16,49.80648739]
[1741273809361,170.38,148.21,148.18,49.80648739]
[1741273809571,170.38,148.21,148.15,0.033]
[1741273809744,170.38,148.21,148.17,49.80648739]
[1741273810071,170.38,148.21,148.15,0.033]
[1741273810236,177.1272,148.21,148.15,0.033]
[1741273810435,18.64964886,148.19,148.15,0.033]
[1741273810652,87.1145,148.2,148.15,0.033]
[1741273811138,170.38,148.21,148.16,49.80648739]
[1741273811336,170.38,148.21,148.18,0.14216157]
[1741273811543,170.38,148.21,148.16,49.80648739]
[1741273811748,170.38,148.21,148.17,0.14216157]
[1741273811973,177.1273,148.21,148.15,0.033]
[1741273812262,170.38,148.21,148.15,0.17516157]
[1741273812561,177.1272,148.21,148.16,0.14216157]
[1741273812750,160.58,148.21,148.17,49.80648739]
[1741273812959,160.58,148.21,148.19,49.80648739]
[1741273813173,167.3272,148.21,148.15,0.033]
[1741273813341,160.58,148.21,148.17,49.94864896]
[1741273813541,167.3272,148.21,148.15,0.033]
[1741273813955,160.58,148.21,148.15,0.033]
[1741273814175,160.58,148.21,148.19,49.80648739]
[1741273814377,160.58,148.21,148.15,6.7827]
[1741273814378,160.58,148.21,148.18,49.80648739]
[1741273814580,167.3271,148.21,148.15,0.033]
[1741273814875,160.58,148.21,148.15,0.17516157]
[1741273815041,160.58,148.21,148.16,49.80648739]
[1741273815370,167.3272,148.21,148.16,49.80648739]
[1741273815671,80.8,148.2,148.16,0.14216157]
[1741273815870,160.58,148.21,148.18,49.80648739]
[1741273816249,167.3271,148.21,148.16,49.80648739]
[1741273816446,167.3273,148.21,148.16,49.80648739]
[1741273816775,160.58,148.21,148.16,49.80648739]
[1741273817069,160.58,148.21,148.15,0.033]
[1741273817070,80.8,148.2,148.15,0.033]
[1741273817267,90.64,148.19,148.15,0.033]
[1741273817472,80.8,148.18,148.15,0.033]
[1741273817840,9.84,148.19,148.15,0.033]
[1741273817841,80.8,148.17,148.15,0.033]
[1741273818037,80.8,148.2,148.16,0.14216157]
[1741273818266,80.8,148.2,148.15,49.83948739]
[1741273818577,80.8,148.19,148.15,49.83948739]
[1741273818768,80.8,148.19,148.15,0.033]
[1741273819071,80.8,148.19,148.15,49.83948739]
[1741273819273,80.8,148.19,148.15,0.033]
[1741273819513,80.8,148.19,148.16,49.80648739]
[1741273819659,80.8,148.19,148.15,0.033]
[1741273819974,80.8,148.19,148.16,0.14216157]
[1741273820275,80.8,148.19,148.15,0.033]
[1741273820679,160.58,148.21,148.18,49.80648739]
[1741273820883,160.58,148.21,148.2,49.94864896]
[1741273821048,9.82,148.28,148.2,49.94864896]
[1741273821049,80.8,148.26,148.2,49.94864896]
[1741273821382,80.8,148.26,148.16,191.01691687]
[1741273821548,80.8,148.25,148.18,0.14216157]
[1741273821753,80.8,148.25,148.21,49.80648739]
[1741273821960,97.6598,148.29,148.23,49.80648739]
[1741273822277,97.6598,148.29,148.2,0.14216157]
[1741273822278,80.8,148.3,148.28,49.80648739]
[1741273822582,160.68,148.31,148.21,18.79181043]
[1741273822752,160.68,148.31,148.28,0.14216157]
[1741273822753,167.4226,148.31,148.28,0.14216157]
[1741273823087,160.68,148.31,148.3,49.80648739]
[1741273823305,0.03,148.36,148.31,0.14216157]
[1741273823484,0.03,148.36,148.35,49.94864896]
[1741273823888,0.03,148.36,148.29,6.1983]
[1741273824093,6.7703,148.36,148.3,0.14216157]
[1741273824396,6.7703,148.36,148.25,0.14216157]
[1741273824604,6.7412,148.34,148.24,49.80648739]
[1741273824906,9.88,148.33,148.28,49.94864896]
[1741273825407,80.8,148.35,148.31,0.14216157]
[1741273825571,6.7703,148.36,148.31,49.94864896]
[1741273825902,6.7703,148.36,148.28,49.80648739]
[1741273826081,80.8,148.35,148.2,18.64964886]
[1741273826282,80.8,148.34,148.22,49.80648739]
[1741273826612,23.596,148.33,148.2,0.14216157]
[1741273826772,92.3861,148.32,148.21,49.80648739]
[1741273826973,92.3861,148.32,148.19,6.1077]
[1741273826974,80.8,148.31,148.19,6.1077]
[1741273827173,80.8,148.3,148.18,49.80648739]
[1741273827400,80.8,148.29,148.18,361.80648739]
[1741273827600,241.46,148.28,148.17,49.80648739]
[1741273827803,241.46,148.28,148.16,49.80648739]
[1741273827981,241.46,148.28,148.15,0.033]
[1741273827982,99.44964886,148.27,148.15,0.033]
[1741273828172,80.8,148.26,148.15,0.033]
[1741273828369,90.62,148.25,148.15,0.033]
[1741273828600,6.7462,148.23,148.15,1.45012984]
[1741273828803,6.7462,148.23,148.18,0.14216157]
[1741273828980,104.4118,148.23,148.15,0.033]
[1741273829182,80.8,148.22,148.15,0.033]
[1741273830302,80.8,148.22,148.16,0.14216157]
[1741273830610,80.8,148.21,148.15,0.033]
[1741273830786,23.6166,148.2,148.15,0.033]
[1741273831312,80.8,148.19,148.15,0.033]
[1741273831528,9.8,148.18,148.15,0.033]
[1741273831704,6.7476,148.2,148.15,0.033]
[1741273832005,6.7476,148.2,148.15,49.98164896]
[1741273832319,80.8,148.19,148.09,0.033]
[1741273832601,80.8,148.18,148.09,0.033]
[1741273832810,23.6215,148.17,148.09,0.033]
[1741273832980,170.48,148.16,148.09,0.033]
[1741273834478,80.8,148.15,148.09,0.033]
[1741273834711,23.6262,148.14,148.09,0.033]
[1741273835007,57.378,148.14,148.09,0.033]
[1741273835677,80.8,148.13,148.03,0.033]
[1741273835878,80.8,148.12,148.03,0.17516157]
[1741273836075,80.8,148.11,148.03,0.033]
[1741273836474,80.8,148.1,148.03,0.033]
[1741273836716,23.6358,148.08,148.03,0.033]
[1741273837088,80.8,148.07,148.03,0.033]
[1741273837289,57.4013,148.08,148.03,0.033]
[1741273837290,80.8,148.06,148.03,0.033]
[1741273837491,80.8,148.05,148.03,0.033]
[1741273837681,80.8,148.04,148.03,0.033]
[1741273838614,87.5549,148.04,148.03,0.033]
[1741273839185,23.6422,148.04,148.01,0.033]
[1741273839503,80.8,148.03,148.01,0.033]
[1741273840004,167.4949,148.04,148.01,0.033]
[1741273840184,160.74,148.04,148.01,0.033]
[1741273840985,160.74,148.04,148.03,0.14216157]
[1741273841184,97.2532,148.08,148.03,0.14216157]
[1741273841505,6.7517,148.11,148.07,312.14216157]
[1741273841916,6.7517,148.11,148.05,49.80648739]
[1741273842212,167.5314,148.12,148.06,0.14216157]
[1741273842505,184.4096,148.12,148.03,0.14216157]
[1741273842814,184.4096,148.12,148.05,0.14216157]
[1741273843305,184.4096,148.12,148.03,49.94864896]
[1741273843500,167.5314,148.12,148.05,0.14216157]
[1741273843898,167.5314,148.12,148.05,49.94864896]
[1741273844107,167.5314,148.12,148.05,0.14216157]
[1741273844424,160.78,148.12,148.06,49.80648739]
[1741273844709,160.78,148.12,148.08,0.14216157]
[1741273844915,160.78,148.12,148.1,312.0]
[1741273845495,167.5312,148.12,148.1,312.0]
[1741273845697,160.78,148.12,148.1,312.0]
[1741273846193,80.8,148.11,148.01,0.033]
[1741273846505,80.8,148.1,148.04,49.80648739]
[1741273846709,80.8,148.1,148.05,0.14216157]
[1741273847092,87.5522,148.1,148.04,0.14216157]
[1741273847812,87.5522,148.1,148.03,0.14216157]
[1741273848014,87.5522,148.1,148.03,49.94864896]
[1741273848313,87.5522,148.1,148.04,0.14216157]
[1741273848610,80.8,148.1,148.07,49.94864896]
[1741273848797,80.8,148.16,148.1,0.14216157]
[1741273848997,6.7487,148.18,148.13,0.14216157]
[1741273849199,6.7481,148.19,148.13,361.94864896]
[1741273849413,23.6183,148.19,148.13,312.14216157]
[1741273849709,23.6183,148.19,148.13,312.0]
[1741273849913,6.7481,148.19,148.14,0.14216157]
[1741273850094,23.6183,148.19,148.14,0.14216157]
[1741273850297,23.6183,148.19,148.12,0.14216157]
[1741273850604,167.5577,148.2,148.14,50.01870668]
[1741273851113,167.5577,148.2,148.14,0.14216157]
[1741273851294,80.8,148.19,148.11,0.14216157]
[1741273851691,80.8,148.19,148.09,49.87654511]
[1741273851911,80.8,148.18,148.08,0.14216157]
[1741273852303,80.8,148.17,148.09,49.87654511]
[1741273852500,80.8,148.17,148.09,0.14216157]
[1741273852815,90.3,148.17,148.09,0.14216157]
[1741273853118,90.3,148.17,148.08,49.87654511]
[1741273853119,6.7494,148.16,148.13,0.14216157]
[1741273853490,23.623,148.16,148.09,49.87654511]
[1741273853690,104.423,148.16,148.08,50.01870668]
[1741273854417,80.8,148.15,148.06,49.87654511]
[1741273854591,23.623,148.16,148.03,25.40494886]
[1741273854592,80.8,148.14,148.08,49.87654511]
[1741273854796,23.623,148.16,148.1,0.14216157]
[1741273854797,6.7494,148.16,148.1,0.14216157]
[1741273855002,6.7494,148.16,148.11,0.14216157]
[1741273855512,6.7494,148.16,148.07,0.14216157]
[1741273855702,23.623,148.16,148.09,0.14216157]
[1741273856019,6.7494,148.16,148.11,0.14216157]
[1741273856217,6.7494,148.16,148.06,81.3]
[1741273856394,80.8,148.15,148.07,0.14216157]
[1741273856594,80.8,148.14,148.07,312.14216157]
[1741273856905,23.623,148.16,148.07,362.01870668]
[1741273856906,80.8,148.13,148.07,362.01870668]
[1741273857100,6.7503,148.14,148.09,0.14216157]
[1741273857310,6.7503,148.14,148.07,0.14216157]
[1741273857613,23.6262,148.14,148.08,0.14216157]
[1741273858296,23.6262,148.14,148.06,0.14216157]
[1741273858498,80.8,148.13,148.06,0.14216157]
[1741273858918,80.8,148.12,148.02,25.40534886]
[1741273859101,6.7517,148.11,148.05,0.14216157]
[1741273859296,23.631,148.11,148.05,49.91318647]
[1741273859605,80.8,148.12,148.09,0.14216157]
[1741273859805,6.7499,148.15,148.09,0.14216157]
[1741273860021,6.7499,148.15,148.09,50.05534804]
[1741273860194,6.7499,148.15,148.12,0.14216157]
[1741273860394,80.8,148.16,148.12,0.14216157]
[1741273860597,80.8,148.16,148.11,312.0]
[1741273860598,87.5495,148.16,148.11,312.0]
[1741273860901,80.8,148.15,148.07,0.14216157]
[1741273861097,6.7495,148.16,148.11,0.14216157]
[1741273861310,23.6231,148.16,148.11,0.14216157]
[1741273861821,23.6231,148.16,148.07,18.64964886]
[1741273861822,80.8,148.15,148.09,0.14216157]
[1741273862016,80.8,148.14,148.06,9.36]
[1741273862312,57.3704,148.16,148.06,49.91318647]
[1741273862313,80.8,148.13,148.06,49.91318647]
[1741273862516,80.8,148.13,148.1,0.14216157]
[1741273862693,104.4231,148.16,148.1,0.14216157]
[1741273863097,138.1704,148.16,148.05,239.51318647]
[1741273863414,80.8,148.15,148.06,0.14216157]
[1741273863621,80.8,148.15,148.03,49.91318647]
[1741273863918,80.8,148.15,148.06,49.91318647]
[1741273864123,80.8,148.14,148.1,50.05534804]
[1741273864324,80.8,148.14,148.1,0.14216157]
[1741273864621,80.8,148.14,148.05,81.3]
[1741273864821,80.8,148.13,148.02,6.7554]
[1741273865129,6.7517,148.11,148.05,50.05534804]
[1741273865621,6.7517,148.11,148.02,196.3557]
[1741273865924,80.8,148.15,148.08,50.05534804]
[1741273866113,6.7503,148.14,148.08,50.05534804]
[1741273866317,80.8,148.13,148.02,6.7557]
[1741273866533,80.8,148.12,148.02,30.73059779]
[1741273866904,80.8,148.12,148.01,20.10076647]
[1741273867304,23.631,148.11,148.06,312.0]
[1741273867614,80.8,148.1,148.03,0.14216157]
[1741273867801,80.8,148.09,148.01,0.033]
[1741273868312,6.7517,148.11,148.08,0.14216157]
[1741273868510,80.8,148.13,148.1,0.14216157]
[1741273868907,6.7485,148.18,148.1,0.14216157]
[1741273869213,6.7494,148.16,148.1,30.87275936]
[1741273869401,6.7494,148.16,148.09,30.73059779]
[1741273869603,6.7494,148.16,148.1,0.14216157]
[1741273869941,0.03,148.2,148.16,0.14216157]
[1741273870240,0.03,148.2,148.18,0.14216157]
[1741273870413,0.03,148.2,148.18,342.87275936]
[1741273870739,0.03,148.2,148.18,312.14216157]
[1741273871411,0.03,148.2,148.19,49.96999387]
[1741273871603,0.03,148.2,148.19,0.14216157]
[1741273872110,0.03,148.2,148.12,68.47748116]
[1741273872111,0.03,148.2,148.13,0.14216157]
[1741273872325,0.03,148.2,148.15,0.14216157]
[1741273872528,0.03,148.2,148.15,49.96999387]
[1741273872824,0.03,148.2,148.18,49.96999387]
[1741273873234,0.03,148.2,148.19,51.67109814]
[1741273873440,0.03,148.3,148.23,0.14216157]
[1741273873640,0.03,148.3,148.28,49.8278323]
[1741273873820,0.03,148.3,148.29,49.96999387]
[1741273874325,0.03,148.3,148.29,178.33520427]
[1741273874546,0.03,148.3,148.29,380.61964273]
[1741273874906,0.03,148.3,148.29,312.14216157]
[1741273875739,0.03,148.3,148.24,49.8278323]
[1741273875909,0.03,148.3,148.24,0.14216157]
[1741273876109,0.03,148.3,148.21,1.41640068]
[1741273876334,0.03,148.3,148.23,49.8278323]
[1741273876524,0.03,148.3,148.24,0.14216157]
[1741273876832,0.03,148.3,148.29,49.96999387]
[1741273877529,0.03,148.3,148.27,0.14216157]
[1741273878128,0.03,148.3,148.26,49.8278323]
[1741273878330,0.03,148.3,148.29,49.96999387]
[1741273878514,0.03,148.3,148.29,178.33506456]
[1741273878833,0.03,148.3,148.29,488.91964273]
[1741273879335,0.03,148.3,148.29,470.26999387]
[1741273879512,0.03,148.3,148.29,312.14216157]
[1741273879711,0.03,148.3,148.29,312.0]
[1741273880131,0.03,148.3,148.29,361.8278323]
[1741273880536,0.03,148.3,148.29,312.14216157]